fUST/lending_fUST_20260608
["ID","MTS","AMOUNT","RATE_DAILY","PERIOD"]
[424432548,1780883453000,-1271.8,0.0001726,2]
[424432539,1780883453000,-513.84,0.0001726,2]
[424432541,1780883453000,-955.67,0.0001726,2]
[424432542,1780883453000,-500.0,0.0001726,2]
[424432540,1780883453000,-500.0,0.0001726,2]
[424432543,1780883453000,-627.34,0.0001726,2]
[424432552,1780883453000,-500.0,0.0001726,2]
[424432551,1780883453000,-703.95,0.0001726,2]
[424432556,1780883453000,-500.0,0.0001726,2]
[424432550,1780883453000,-663.23,0.0001726,2]
[424432554,1780883453000,-517.91,0.0001726,2]
[424432553,1780883453000,-500.0,0.0001726,2]
[424432555,1780883453000,-500.0,0.0001726,2]
[424432558,1780883453000,-500.0,0.0001726,2]
[424432549,1780883453000,-615.6419732,0.0001726,2]
[424432560,1780883453000,-500.0,0.0001726,2]
[424432557,1780883453000,-500.0,0.0001726,2]
[424432561,1780883453000,-500.0,0.0001726,2]
[424432559,1780883453000,-500.0,0.0001726,2]
[424432563,1780883453000,-580.25,0.0001726,2]
[424432564,1780883453000,-500.0,0.0001726,2]
[424432592,1780883453000,-1117.32,0.0001726,2]
[424432595,1780883453000,-500.0,0.0001726,2]
[424432660,1780883453000,-886.09,0.00017534,2]
[424432638,1780883453000,-180.56195525,0.00017285,2]
[424432633,1780883453000,-1890.08,0.0001726,2]
[424432632,1780883453000,-2289.31,0.0001726,2]
[424432634,1780883453000,-500.0,0.0001726,2]
[424432637,1780883453000,-553.88,0.0001726,2]
[424432636,1780883453000,-615.25,0.0001726,2]
[424432640,1780883453000,-151.68781027,0.00017349,2]
[424432650,1780883453000,-621.15,0.00017534,2]
[424432652,1780883453000,-500.0,0.00017534,2]
[424432653,1780883453000,-583.34,0.00017534,2]
[424432644,1780883453000,-1405.2529,0.00017534,2]
[424432641,1780883453000,-679.51349752,0.00017349,2]
[424432645,1780883453000,-500.0,0.00017534,2]
[424432649,1780883453000,-500.0,0.00017534,2]
[424432647,1780883453000,-1085.46,0.00017534,2]
[424432646,1780883453000,-500.0,0.00017534,2]
[424432643,1780883453000,-1639.94957,0.000175,2]
[424432642,1780883453000,-151.0,0.000174,2]
[424432648,1780883453000,-500.0,0.00017534,2]
[424432654,1780883453000,-1188.83,0.00017534,2]
[424432655,1780883453000,-278.39345093,0.00017534,2]
[424432658,1780883453000,-500.0,0.00017534,2]
[424432657,1780883453000,-500.0,0.00017534,2]
[424432656,1780883453000,-500.0,0.00017534,2]
[424432593,1780883453000,-500.0,0.0001726,2]
[424432659,1780883453000,-500.0,0.00017534,2]
[424432661,1780883453000,-500.0,0.00017534,2]
[424432663,1780883453000,-500.0,0.00017534,2]
[424432662,1780883453000,-628.19,0.00017534,2]
[424432635,1780883453000,-500.0,0.0001726,2]
[424432639,1780883453000,-151.0,0.000173,2]
[424432651,1780883453000,-500.0,0.00017534,2]
[424432628,1780883453000,-1161.95,0.0001726,2]
[424432597,1780883453000,-554.84,0.0001726,2]
[424432596,1780883453000,-500.0,0.0001726,2]
[424432631,1780883453000,-1398.29,0.0001726,2]
[424432604,1780883453000,-500.0,0.0001726,2]
[424432613,1780883453000,-500.0,0.0001726,2]
[424432612,1780883453000,-500.0,0.0001726,2]
[424432603,1780883453000,-1717.19,0.0001726,2]
[424432614,1780883453000,-215.03084606,0.0001726,2]
[424432606,1780883453000,-6368.18,0.0001726,2]
[424432607,1780883453000,-1076.95,0.0001726,2]
[424432605,1780883453000,-2076.32,0.0001726,2]
[424432611,1780883453000,-1507.4,0.0001726,2]
[424432609,1780883453000,-500.0,0.0001726,2]
[424432610,1780883453000,-1440.04,0.0001726,2]
[424432608,1780883453000,-500.0,0.0001726,2]
[424432602,1780883453000,-500.0,0.0001726,2]
[424432618,1780883453000,-500.0,0.0001726,2]
[424432616,1780883453000,-3940.21,0.0001726,2]
[424432630,1780883453000,-500.0,0.0001726,2]
[424432627,1780883453000,-500.0,0.0001726,2]
[424432623,1780883453000,-500.0,0.0001726,2]
[424432622,1780883453000,-1127.17,0.0001726,2]
[424432619,1780883453000,-3940.81,0.0001726,2]
[424432621,1780883453000,-1588.49,0.0001726,2]
[424432629,1780883453000,-603.45,0.0001726,2]
[424432617,1780883453000,-500.0,0.0001726,2]
[424432624,1780883453000,-500.0,0.0001726,2]
[424432615,1780883453000,-559.5,0.0001726,2]
[424432626,1780883453000,-7065.26,0.0001726,2]
[424432620,1780883453000,-3395.58,0.0001726,2]
[424432625,1780883453000,-2631.22,0.0001726,2]
[424432700,1780883454000,-500.0,0.00017534,2]
[424432705,1780883454000,-500.0,0.00017534,2]
[424432704,1780883454000,-500.0,0.00017534,2]
[424432706,1780883454000,-500.0,0.00017534,2]
[424432701,1780883454000,-500.0,0.00017534,2]
[424432697,1780883454000,-1271.8,0.00017534,2]
[424432696,1780883454000,-500.0,0.00017534,2]
[424432695,1780883454000,-1029.66,0.00017534,2]
[424432702,1780883454000,-517.91,0.00017534,2]
[424432694,1780883454000,-500.0,0.00017534,2]
[424432699,1780883454000,-703.95,0.00017534,2]
[424432698,1780883454000,-663.23,0.00017534,2]
[424432719,1780883454000,-1414.11,0.00017534,2]
[424432708,1780883454000,-500.0,0.00017534,2]
[424432718,1780883454000,-710.91,0.00017534,2]
[424432712,1780883454000,-500.0,0.00017534,2]
[424432715,1780883454000,-500.0,0.00017534,2]
[424432709,1780883454000,-500.0,0.00017534,2]
[424432707,1780883454000,-500.0,0.00017534,2]
[424432710,1780883454000,-807.82,0.00017534,2]
[424432711,1780883454000,-580.25,0.00017534,2]
[424432714,1780883454000,-2108.36,0.00017534,2]
[424432716,1780883454000,-998.99,0.00017534,2]
[424432713,1780883454000,-159.53522892,0.00017534,2]
[424432692,1780883454000,-627.34,0.00017534,2]
[424432703,1780883454000,-500.0,0.00017534,2]
[424432693,1780883454000,-500.0,0.00017534,2]
[424432717,1780883454000,-2364.95,0.00017534,2]
[424432690,1780883454000,-955.67,0.00017534,2]
[424432665,1780883454000,-638.01,0.00017534,2]
[424432666,1780883454000,-935.98,0.00017534,2]
[424432664,1780883454000,-500.0,0.00017534,2]
[424432667,1780883454000,-770.17,0.00017534,2]
[424432669,1780883454000,-518.9,0.00017534,2]
[424432668,1780883454000,-538.94,0.00017534,2]
[424432672,1780883454000,-500.0,0.00017534,2]
[424432679,1780883454000,-2306.87,0.00017534,2]
[424432673,1780883454000,-465.69803392,0.00017534,2]
[424432677,1780883454000,-880.96,0.00017534,2]
[424432678,1780883454000,-500.0,0.00017534,2]
[424432670,1780883454000,-211.39206492,0.00017534,2]
[424432691,1780883454000,-500.0,0.00017534,2]
[424432675,1780883454000,-500.0,0.00017534,2]
[424432671,1780883454000,-900.86,0.00017534,2]
[424432674,1780883454000,-500.0,0.00017534,2]
[424432680,1780883454000,-500.0,0.00017534,2]
[424432682,1780883454000,-500.0,0.00017534,2]
[424432681,1780883454000,-500.0,0.00017534,2]
[424432684,1780883454000,-513.47,0.00017534,2]
[424432683,1780883454000,-1081.12,0.00017534,2]
[424432685,1780883454000,-500.0,0.00017534,2]
[424432686,1780883454000,-500.0,0.00017534,2]
[424432688,1780883454000,-513.84,0.00017534,2]
[424432687,1780883454000,-500.0,0.00017534,2]
[424432689,1780883454000,-500.0,0.00017534,2]
[424432676,1780883454000,-500.0,0.00017534,2]
[424432721,1780883454000,-24888.28,0.00017534,2]
[424432744,1780883454000,-500.0,0.00017534,2]
[424432732,1780883454000,-1117.32,0.00017534,2]
[424432759,1780883454000,-3395.58,0.00017534,2]
[424432760,1780883454000,-1588.49,0.00017534,2]
[424432754,1780883454000,-559.5,0.00017534,2]
[424432752,1780883454000,-500.0,0.00017534,2]
[424432753,1780883454000,-500.0,0.00017534,2]
[424432755,1780883454000,-3940.21,0.00017534,2]
[424432756,1780883454000,-500.0,0.00017534,2]
[424432757,1780883454000,-500.0,0.00017534,2]
[424432773,1780883454000,-500.0,0.00017534,2]
[424432761,1780883454000,-1127.17,0.00017534,2]
[424432762,1780883454000,-500.0,0.00017534,2]
[424432771,1780883454000,-2289.31,0.00017534,2]
[424432758,1780883454000,-3940.81,0.00017534,2]
[424432763,1780883454000,-500.0,0.00017534,2]
[424432764,1780883454000,-2631.22,0.00017534,2]
[424432765,1780883454000,-7065.26,0.00017534,2]
[424432769,1780883454000,-500.0,0.00017534,2]
[424432766,1780883454000,-500.0,0.00017534,2]
[424432768,1780883454000,-603.45,0.00017534,2]
[424432770,1780883454000,-1398.29,0.00017534,2]
[424432776,1780883454000,-553.88,0.00017534,2]
[424432774,1780883454000,-264.59103908,0.00017534,2]
[424432777,1780883454000,-151.0,0.000176,2]
[424432775,1780883454000,-615.25,0.00017534,2]
[424432778,1780883454000,-294.812643,0.00017653,2]
[424432722,1780883454000,-500.0,0.00017534,2]
[424432772,1780883454000,-1890.08,0.00017534,2]
[424432751,1780883454000,-1507.4,0.00017534,2]
[424432767,1780883454000,-1161.95,0.00017534,2]
[424432749,1780883454000,-500.0,0.00017534,2]
[424432750,1780883454000,-1440.04,0.00017534,2]
[424432733,1780883454000,-500.0,0.00017534,2]
[424432730,1780883454000,-2091.11,0.00017534,2]
[424432731,1780883454000,-500.0,0.00017534,2]
[424432729,1780883454000,-500.0,0.00017534,2]
[424432723,1780883454000,-782.05,0.00017534,2]
[424432727,1780883454000,-605.84,0.00017534,2]
[424432725,1780883454000,-1204.28,0.00017534,2]
[424432726,1780883454000,-539.0,0.00017534,2]
[424432724,1780883454000,-500.0,0.00017534,2]
[424432728,1780883454000,-500.0,0.00017534,2]
[424432735,1780883454000,-500.0,0.00017534,2]
[424432734,1780883454000,-500.0,0.00017534,2]
[424432720,1780883454000,-500.0,0.00017534,2]
[424432743,1780883454000,-1717.19,0.00017534,2]
[424432779,1780883454000,-151.0,0.000177,2]
[424432748,1780883454000,-500.0,0.00017534,2]
[424432741,1780883454000,-500.0,0.00017534,2]
[424432740,1780883454000,-500.0,0.00017534,2]
[424432737,1780883454000,-554.84,0.00017534,2]
[424432742,1780883454000,-500.0,0.00017534,2]
[424432736,1780883454000,-500.0,0.00017534,2]
[424432738,1780883454000,-555.15,0.00017534,2]
[424432745,1780883454000,-2076.32,0.00017534,2]
[424432739,1780883454000,-1603.54,0.00017534,2]
[424432746,1780883454000,-6368.18,0.00017534,2]
[424432747,1780883454000,-1076.95,0.00017534,2]
[424432802,1780883455000,-935.98,0.00017808,2]
[424432810,1780883455000,-500.0,0.00017808,2]
[424432806,1780883455000,-900.86,0.00017808,2]
[424432805,1780883455000,-518.9,0.00017808,2]
[424432807,1780883455000,-393.03957927,0.00017808,2]
[424432809,1780883455000,-368.98189877,0.00017808,2]
[424432808,1780883455000,-500.0,0.00017808,2]
[424432812,1780883455000,-500.0,0.00017808,2]
[424432811,1780883455000,-880.96,0.00017808,2]
[424432820,1780883455000,-500.0,0.00017808,2]
[424432815,1780883455000,-500.0,0.00017808,2]
[424432816,1780883455000,-500.0,0.00017808,2]
[424432814,1780883455000,-500.0,0.00017808,2]
[424432817,1780883455000,-1081.12,0.00017808,2]
[424432819,1780883455000,-500.0,0.00017808,2]
[424432821,1780883455000,-500.0,0.00017808,2]
[424432818,1780883455000,-513.47,0.00017808,2]
[424432825,1780883455000,-500.0,0.00017808,2]
[424432801,1780883455000,-638.01,0.00017808,2]
[424432813,1780883455000,-2306.87,0.00017808,2]
[424432800,1780883455000,-500.0,0.00017808,2]
[424432789,1780883455000,-500.0,0.00017808,2]
[424432803,1780883455000,-770.17,0.00017808,2]
[424432824,1780883455000,-955.67,0.00017808,2]
[424432781,1780883455000,-1405.2529,0.00017808,2]
[424432780,1780883455000,-3000.0,0.000178,2]
[424432782,1780883455000,-500.0,0.00017808,2]
[424432785,1780883455000,-500.0,0.00017808,2]
[424432783,1780883455000,-500.0,0.00017808,2]
[424432784,1780883455000,-1085.46,0.00017808,2]
[424432786,1780883455000,-500.0,0.00017808,2]
[424432787,1780883455000,-621.15,0.00017808,2]
[424432804,1780883455000,-538.94,0.00017808,2]
[424432788,1780883455000,-500.0,0.00017808,2]
[424432791,1780883455000,-1188.83,0.00017808,2]
[424432792,1780883455000,-500.0,0.00017808,2]
[424432793,1780883455000,-500.0,0.00017808,2]
[424432796,1780883455000,-886.09,0.00017808,2]
[424432794,1780883455000,-500.0,0.00017808,2]
[424432795,1780883455000,-500.0,0.00017808,2]
[424432798,1780883455000,-628.19,0.00017808,2]
[424432797,1780883455000,-500.0,0.00017808,2]
[424432799,1780883455000,-500.0,0.00017808,2]
[424432790,1780883455000,-583.34,0.00017808,2]
[424432827,1780883455000,-500.0,0.00017808,2]
[424432829,1780883455000,-1029.66,0.00017808,2]
[424432826,1780883455000,-627.34,0.00017808,2]
[424432851,1780883455000,-710.91,0.00017808,2]
[424432854,1780883455000,-24888.28,0.00017808,2]
[424432855,1780883455000,-500.0,0.00017808,2]
[424432865,1780883455000,-1117.32,0.00017808,2]
[424432858,1780883455000,-1204.28,0.00017808,2]
[424432856,1780883455000,-782.05,0.00017808,2]
[424432857,1780883455000,-500.0,0.00017808,2]
[424432860,1780883455000,-605.84,0.00017808,2]
[424432859,1780883455000,-539.0,0.00017808,2]
[424432849,1780883455000,-998.99,0.00017808,2]
[424432864,1780883455000,-500.0,0.00017808,2]
[424432863,1780883455000,-2091.11,0.00017808,2]
[424432867,1780883455000,-500.0,0.00017808,2]
[424432869,1780883455000,-500.0,0.00017808,2]
[424432872,1780883455000,-1603.54,0.00017808,2]
[424432870,1780883455000,-554.84,0.00017808,2]
[424432866,1780883455000,-500.0,0.00017808,2]
[424432868,1780883455000,-500.0,0.00017808,2]
[424432871,1780883455000,-555.15,0.00017808,2]
[424432822,1780883455000,-513.84,0.00017808,2]
[424432861,1780883455000,-500.0,0.00017808,2]
[424432850,1780883455000,-2364.95,0.00017808,2]
[424432862,1780883455000,-500.0,0.00017808,2]
[424432847,1780883455000,-2108.36,0.00017808,2]
[424432823,1780883455000,-500.0,0.00017808,2]
[424432853,1780883455000,-500.0,0.00017808,2]
[424432828,1780883455000,-500.0,0.00017808,2]
[424432830,1780883455000,-500.0,0.00017808,2]
[424432831,1780883455000,-1271.8,0.00017808,2]
[424432832,1780883455000,-663.23,0.00017808,2]
[424432835,1780883455000,-500.0,0.00017808,2]
[424432834,1780883455000,-500.0,0.00017808,2]
[424432841,1780883455000,-500.0,0.00017808,2]
[424432840,1780883455000,-500.0,0.00017808,2]
[424432833,1780883455000,-703.95,0.00017808,2]
[424432836,1780883455000,-517.91,0.00017808,2]
[424432842,1780883455000,-500.0,0.00017808,2]
[424432838,1780883455000,-500.0,0.00017808,2]
[424432839,1780883455000,-500.0,0.00017808,2]
[424432844,1780883455000,-807.82,0.00017808,2]
[424432843,1780883455000,-513.37758355,0.00017808,2]
[424432845,1780883455000,-580.25,0.00017808,2]
[424432846,1780883455000,-500.0,0.00017808,2]
[424432837,1780883455000,-500.0,0.00017808,2]
[424432848,1780883455000,-500.0,0.00017808,2]
[424432852,1780883455000,-1414.11,0.00017808,2]
[424432912,1780883456000,-1521.49791498,0.000179,2]
[424432910,1780883456000,-3000.0,0.0001782,2]
[424432909,1780883456000,-3000.0,0.0001781,2]
[424432908,1780883456000,-553.88,0.00017808,2]
[424432911,1780883456000,-4646.021613,0.0001783,2]
[424432914,1780883456000,-151.0,0.00017937,2]
[424432915,1780883456000,-151.0,0.00017937,2]
[424432916,1780883456000,-151.0,0.00017937,2]
[424432913,1780883456000,-318.35394462,0.000179,2]
[424432906,1780883456000,-500.0,0.00017808,2]
[424432919,1780883456000,-152.0,0.00018036,7]
[424432905,1780883456000,-1890.08,0.00017808,2]
[424432917,1780883456000,-281.61533981,0.00018,2]
[424432921,1780883456000,-500.0,0.00018082,2]
[424432944,1780883456000,-518.9,0.00018082,2]
[424432930,1780883456000,-1188.83,0.00018082,2]
[424432923,1780883456000,-1085.46,0.00018082,2]
[424432922,1780883456000,-500.0,0.00018082,2]
[424432920,1780883456000,-1405.2529,0.00018082,2]
[424432929,1780883456000,-583.34,0.00018082,2]
[424432928,1780883456000,-500.0,0.00018082,2]
[424432926,1780883456000,-621.15,0.00018082,2]
[424432927,1780883456000,-500.0,0.00018082,2]
[424432924,1780883456000,-500.0,0.00018082,2]
[424432931,1780883456000,-500.0,0.00018082,2]
[424432933,1780883456000,-500.0,0.00018082,2]
[424432942,1780883456000,-770.17,0.00018082,2]
[424432907,1780883456000,-615.25,0.00017808,2]
[424432918,1780883456000,-836.36618673,0.00018031,2]
[424432900,1780883456000,-1161.95,0.00017808,2]
[424432890,1780883456000,-500.0,0.00017808,2]
[424432898,1780883456000,-7065.26,0.00017808,2]
[424432878,1780883456000,-2076.32,0.00017808,2]
[424432877,1780883456000,-500.0,0.00017808,2]
[424432873,1780883456000,-500.0,0.00017808,2]
[424432875,1780883456000,-500.0,0.00017808,2]
[424432876,1780883456000,-1717.19,0.00017808,2]
[424432874,1780883456000,-500.0,0.00017808,2]
[424432879,1780883456000,-6368.18,0.00017808,2]
[424432880,1780883456000,-1076.95,0.00017808,2]
[424432883,1780883456000,-1440.04,0.00017808,2]
[424432881,1780883456000,-500.0,0.00017808,2]
[424432891,1780883456000,-3940.81,0.00017808,2]
[424432884,1780883456000,-1507.4,0.00017808,2]
[424432882,1780883456000,-500.0,0.00017808,2]
[424432901,1780883456000,-603.45,0.00017808,2]
[424432885,1780883456000,-500.0,0.00017808,2]
[424432887,1780883456000,-559.5,0.00017808,2]
[424432886,1780883456000,-500.0,0.00017808,2]
[424432889,1780883456000,-3940.21,0.00017808,2]
[424432904,1780883456000,-2289.31,0.00017808,2]
[424432903,1780883456000,-1398.29,0.00017808,2]
[424432893,1780883456000,-1588.49,0.00017808,2]
[424432892,1780883456000,-3395.58,0.00017808,2]
[424432894,1780883456000,-1127.17,0.00017808,2]
[424432897,1780883456000,-2631.22,0.00017808,2]
[424432895,1780883456000,-291.43497859,0.00017808,2]
[424432902,1780883456000,-500.0,0.00017808,2]
[424432899,1780883456000,-500.0,0.00017808,2]
[424432896,1780883456000,-500.0,0.00017808,2]
[424432888,1780883456000,-500.0,0.00017808,2]
[424432932,1780883456000,-500.0,0.00018082,2]
[424432925,1780883456000,-500.0,0.00018082,2]
[424432936,1780883456000,-500.0,0.00018082,2]
[424432969,1780883456000,-703.95,0.00018082,2]
[424432973,1780883456000,-517.91,0.00018082,2]
[424432972,1780883456000,-500.0,0.00018082,2]
[424432985,1780883456000,-998.99,0.00018082,2]
[424432977,1780883456000,-500.0,0.00018082,2]
[424432981,1780883456000,-580.25,0.00018082,2]
[424432979,1780883456000,-500.0,0.00018082,2]
[424432975,1780883456000,-500.0,0.00018082,2]
[424432980,1780883456000,-807.82,0.00018082,2]
[424432976,1780883456000,-500.0,0.00018082,2]
[424432984,1780883456000,-500.0,0.00018082,2]
[424432983,1780883456000,-2108.36,0.00018082,2]
[424432974,1780883456000,-500.0,0.00018082,2]
[424432978,1780883456000,-483.14975751,0.00018082,2]
[424432982,1780883456000,-500.0,0.00018082,2]
[424432988,1780883456000,-1414.11,0.00018082,2]
[424432986,1780883456000,-2364.95,0.00018082,2]
[424432987,1780883456000,-710.91,0.00018082,2]
[424432989,1780883456000,-292.79555001,0.00018082,2]
[424432990,1780883456000,-2151.97032197,0.00018082,2]
[424432993,1780883456000,-782.05,0.00018082,2]
[424432992,1780883456000,-500.0,0.00018082,2]
[424432994,1780883456000,-500.0,0.00018082,2]
[424432991,1780883456000,-22736.30967803,0.00018082,2]
[424432995,1780883456000,-1204.28,0.00018082,2]
[424432996,1780883456000,-539.0,0.00018082,2]
[424432998,1780883456000,-500.0,0.00018082,2]
[424432999,1780883456000,-500.0,0.00018082,2]
[424432935,1780883456000,-886.09,0.00018082,2]
[424432968,1780883456000,-1271.8,0.00018082,2]
[424432967,1780883456000,-363.85644756,0.00018082,2]
[424432997,1780883456000,-605.84,0.00018082,2]
[424432970,1780883456000,-663.23,0.00018082,2]
[424432965,1780883456000,-500.0,0.00018082,2]
[424432934,1780883456000,-500.0,0.00018082,2]
[424432938,1780883456000,-500.0,0.00018082,2]
[424432937,1780883456000,-628.19,0.00018082,2]
[424432939,1780883456000,-500.0,0.00018082,2]
[424432941,1780883456000,-935.98,0.00018082,2]
[424432940,1780883456000,-638.01,0.00018082,2]
[424432945,1780883456000,-900.86,0.00018082,2]
[424432947,1780883456000,-374.3985119,0.00018082,2]
[424432946,1780883456000,-500.0,0.00018082,2]
[424432948,1780883456000,-880.96,0.00018082,2]
[424432949,1780883456000,-500.0,0.00018082,2]
[424432950,1780883456000,-2306.87,0.00018082,2]
[424432953,1780883456000,-500.0,0.00018082,2]
[424432943,1780883456000,-538.94,0.00018082,2]
[424432952,1780883456000,-500.0,0.00018082,2]
[424432951,1780883456000,-500.0,0.00018082,2]
[424432971,1780883456000,-500.0,0.00018082,2]
[424432960,1780883456000,-500.0,0.00018082,2]
[424432963,1780883456000,-627.34,0.00018082,2]
[424432964,1780883456000,-500.0,0.00018082,2]
[424432961,1780883456000,-955.67,0.00018082,2]
[424432966,1780883456000,-1029.66,0.00018082,2]
[424432959,1780883456000,-513.84,0.00018082,2]
[424432955,1780883456000,-513.47,0.00018082,2]
[424432956,1780883456000,-500.0,0.00018082,2]
[424432958,1780883456000,-500.0,0.00018082,2]
[424432954,1780883456000,-1081.12,0.00018082,2]
[424432957,1780883456000,-500.0,0.00018082,2]
[424432962,1780883456000,-500.0,0.00018082,2]
[424433041,1780883457000,-1890.08,0.00018082,2]
[424433039,1780883457000,-1398.29,0.00018082,2]
[424433042,1780883457000,-500.0,0.00018082,2]
[424433043,1780883457000,-615.25,0.00018082,2]
[424433037,1780883457000,-603.45,0.00018082,2]
[424433036,1780883457000,-1161.95,0.00018082,2]
[424433034,1780883457000,-7065.26,0.00018082,2]
[424433030,1780883457000,-1588.49,0.00018082,2]
[424433035,1780883457000,-500.0,0.00018082,2]
[424433029,1780883457000,-3395.58,0.00018082,2]
[424433040,1780883457000,-2289.31,0.00018082,2]
[424433027,1780883457000,-500.0,0.00018082,2]
[424433048,1780883457000,-1078.30353879,0.00018115,2]
[424433046,1780883457000,-1521.49791498,0.000181,2]
[424433045,1780883457000,-162.32126828,0.000181,4]
[424433044,1780883457000,-553.88,0.00018082,2]
[424433047,1780883457000,-300.71655575,0.00018112,2]
[424433049,1780883457000,-1521.49791498,0.000182,2]
[424433052,1780883457000,-361.94214892,0.00018308,2]
[424433059,1780883457000,-500.0,0.00018356,2]
[424433051,1780883457000,-825.0,0.00018273,2]
[424433060,1780883457000,-500.0,0.00018356,2]
[424433050,1780883457000,-825.0,0.00018218,2]
[424433053,1780883457000,-151.22991978,0.00018314,2]
[424433031,1780883457000,-1127.17,0.00018082,2]
[424433055,1780883457000,-1405.2529,0.00018356,2]
[424433038,1780883457000,-500.0,0.00018082,2]
[424433026,1780883457000,-3940.21,0.00018082,2]
[424433011,1780883457000,-500.0,0.00018082,2]
[424433025,1780883457000,-500.0,0.00018082,2]
[424433054,1780883457000,-833.0,0.00018342,2]
[424433001,1780883457000,-500.0,0.00018082,2]
[424433000,1780883457000,-2091.11,0.00018082,2]
[424433003,1780883457000,-500.0,0.00018082,2]
[424433004,1780883457000,-500.0,0.00018082,2]
[424433002,1780883457000,-1117.32,0.00018082,2]
[424433005,1780883457000,-500.0,0.00018082,2]
[424433007,1780883457000,-554.84,0.00018082,2]
[424433006,1780883457000,-500.0,0.00018082,2]
[424433008,1780883457000,-555.15,0.00018082,2]
[424433009,1780883457000,-1603.54,0.00018082,2]
[424433020,1780883457000,-1440.04,0.00018082,2]
[424433019,1780883457000,-500.0,0.00018082,2]
[424433010,1780883457000,-500.0,0.00018082,2]
[424433012,1780883457000,-500.0,0.00018082,2]
[424433013,1780883457000,-1717.19,0.00018082,2]
[424433017,1780883457000,-1076.95,0.00018082,2]
[424433018,1780883457000,-500.0,0.00018082,2]
[424433015,1780883457000,-2076.32,0.00018082,2]
[424433014,1780883457000,-500.0,0.00018082,2]
[424433016,1780883457000,-6368.18,0.00018082,2]
[424433022,1780883457000,-500.0,0.00018082,2]
[424433032,1780883457000,-500.0,0.00018082,2]
[424433033,1780883457000,-2631.22,0.00018082,2]
[424433021,1780883457000,-1507.4,0.00018082,2]
[424433023,1780883457000,-196.8090128,0.00018082,2]
[424433024,1780883457000,-559.5,0.00018082,2]
[424433028,1780883457000,-3940.81,0.00018082,2]
[424433057,1780883457000,-1085.46,0.00018356,2]
[424433058,1780883457000,-500.0,0.00018356,2]
[424433056,1780883457000,-219.77929534,0.00018356,2]
[424433092,1780883457000,-500.0,0.00018356,2]
[424433094,1780883457000,-500.0,0.00018356,2]
[424433093,1780883457000,-513.84,0.00018356,2]
[424433103,1780883457000,-703.95,0.00018356,2]
[424433096,1780883457000,-500.0,0.00018356,2]
[424433095,1780883457000,-955.67,0.00018356,2]
[424433099,1780883457000,-500.0,0.00018356,2]
[424433098,1780883457000,-500.0,0.00018356,2]
[424433101,1780883457000,-1271.8,0.00018356,2]
[424433097,1780883457000,-627.34,0.00018356,2]
[424433100,1780883457000,-1029.66,0.00018356,2]
[424433102,1780883457000,-663.23,0.00018356,2]
[424433116,1780883457000,-500.0,0.00018356,2]
[424433107,1780883457000,-500.0,0.00018356,2]
[424433110,1780883457000,-500.0,0.00018356,2]